[Event "Superbet Blitz Poland 2023"]
[Site "Warsaw"]
[Date "2023.05.24"]
[Round "6"]
[White "Deac, Bogdan-Daniel"]
[Black "Aronian, Levon"]
[Result "0-1"]
[ECO "C78"]
[WhiteElo "2700"]
[BlackElo "2745"]
[Annotator "TA"]
[PlyCount "102"]
[EventDate "2023.05.24"]
[EventType "tourn"]
[EventCountry "POL"]
[SourceTitle "playchess.com"]
[Source "ChessBase"]
[SourceQuality "1"]
[TimeControl "300+2"]

{[%evp 20,102,8,0,8,0,0,0,0,0,4,0,7,-1,-3,-4,6,-16,-17,-9,-16,-12,-9,-8,-12,-11,-5,-20,0,-35,-10,-38,0,-37,-22,-35,-28,-59,-31,-42,-20,-28,-29,-20,-20,-20,-23,-37,-22,-131,-62,-250,-248,-704,-694,-1297,-1234,-1186,-1008,-928,-931,-891,-868,-968,-926,-1629,-1574,-1929,-1884,-1191,-895,-825,-985,-1110,-992,-29981,-29982,-29982,-29980,-29978,-12837,-29972,-12838,-29983,-29983]} 1. e4 {[%emt 0:00:02]} e5 {[%emt 0:00:01]} 2. Nf3 {[%emt 0:00:02]} Nc6 {[%emt 0:00:01]} 3. Bb5 {[%emt 0:00:01][%cal Bf1b5,Bb5a4,Ba4b3][%mdl 32]} Nf6 {[%emt 0:00:02]} 4. d3 {[%emt 0:00:09]} Bc5 {[%emt 0:00:01]} 5. Ba4 {[%emt 0:00:09]} O-O {[%emt 0:00:08]} 6. O-O {[%emt 0:00:03]} Re8 {[%emt 0:00:07]} 7. Nbd2 {[%emt 0:00:37]} a6 {[%emt 0:00:12]} 8. c3 {[%emt 0:00:32]} b5 {[%emt 0:00:01]} 9. Bb3 {[%emt 0:00:08]} d6 {[%emt 0:00:03]} 10. h3 {[%emt 0:00:01]} h6 {[%emt 0:00:19]} 11. Re1 {[%emt 0:00:01]} Be6 {[%emt 0:00:01] C78: Ruy Lopez: Archangelsk and Möller Defences.} 12. Bxe6 {[%emt 0:00:53]} Rxe6 {[%emt 0:00:02]} 13. b4 {[%emt 0:00:01]} Bb6 {[%emt 0:00:06] The position is equal.} 14. a4 {[%emt 0:00:01] [#]} Ne7 $146 {[%emt 0:00:11]} ({Predecessor:} 14... d5 15. Qc2 d4 16. Nb3 dxc3 17. Qxc3 Qf8 18. axb5 axb5 19. Rxa8 Qxa8 20. Bd2 Qa7 {0-1 Calio,M (2352)-Oen,G (2177) W-Cup21 sf01 email 2017}) 15. Nf1 {[%emt 0:00:14]} Ng6 {[%emt 0:00:02]} 16. Ng3 {[%emt 0:00:03]} d5 {[%emt 0:00:19]} 17. Qc2 {[%emt 0:00:28]} Rc8 {[%emt 0:00:11]} 18. axb5 {[%emt 0:00:41]} axb5 {[%emt 0:00:02]} 19. Be3 {[%emt 0:00:33]} Bxe3 {[%emt 0:00:26]} 20. Rxe3 {[%emt 0:00:01]} dxe4 {[%emt 0:00:14]} 21. dxe4 {[%emt 0:00:12]} c5 {[%emt 0:00:02]} 22. bxc5 {[%emt 0:00:17]} Rxc5 {[%emt 0:00:01]} 23. Qb3 {[%emt 0:00:19]} Nf4 {[%emt 0:00:14]} 24. Ne2 {[%emt 0:00:14]} (24. Nf5 $5 {[%cal Ra1a7]}) 24... Qc8 {[%emt 0:00:28]} (24... Qc7 $5 {[%cal Rf4e2]}) 25. Ra3 {[%emt 0:00:04]} Rec6 {[%emt 0:00:33]} (25... Nxe2+ {simplifies} 26. Rxe2 Qc6 27. Qb1 Ne8) 26. Ng3 {[%emt 0:00:04]} g6 {[%emt 0:00:11]} 27. Kh2 {[%emt 0:00:02]} Kg7 {[%emt 0:00:13]} 28. Nf1 {[%emt 0:00:02]} Ne8 {[%emt 0:00:16]} 29. N1d2 {[%emt 0:00:02]} Nd6 {[%emt 0:00:01]} 30. Qb4 {[%emt 0:00:02]} (30. Qa2 {simplifies} Qe6 31. Qxe6 Nxe6 32. Ne1) 30... Nc4 {[%emt 0:00:12]} 31. Nxc4 {[%emt 0:00:01]} bxc4 {[%emt 0:00:02]} 32. Ra7 {[%emt 0:00:02]} Nd3 {[%emt 0:00:08]} 33. Qa3 {[%emt 0:00:02]} (33. Qa4 {with more complications.} Rf6 34. Ra8 Qe6 35. Kg1) 33... Qe6 {[%emt 0:00:18]} ({Reject} 33... Nxf2 34. Nxe5 Rxe5 35. Rf3 $11) 34. Re2 {[%emt 0:00:02]} (34. Nh4 $11 {remains equal.}) 34... Rb6 {[%emt 0:00:05]} (34... Qf6 $17 35. Ra8 Rc8 36. Rxc8 Rxc8) 35. Qa1 $2 {[%emt 0:00:02] This move loses the game for White.} ({White should play} 35. Re3 $15 Rcc6 36. Qe7 (36. Ra8 $2 Rd6 $17)) 35... Qf6 $19 {[%emt 0:00:07]} 36. Kh1 $2 {[%emt 0:00:02]} (36. Ng1) 36... Rcb5 {[%emt 0:00:02] [#] ...Rb1+ would be deadly.} 37. Qf1 {[%emt 0:00:03]} Rb1 {[%emt 0:00:03] Against Ra1} 38. Ne1 {[%emt 0:00:02]} R6b2 {[%emt 0:00:05]} 39. Rxb2 {[%emt 0:00:02]} Rxe1 {[%emt 0:00:02]} (39... Rxb2 $2 {too greedy.} 40. Nxd3 cxd3 41. Ra1 $19) 40. Qxe1 {[%emt 0:00:01]} Nxe1 {[%emt 0:00:01]} 41. f3 {[%emt 0:00:01]} Qg5 {[%emt 0:00:08] [#] ( -> ...Qc1)} 42. Rba2 {[%emt 0:00:03]} h5 {[%emt 0:00:04][%cal Bh6h5,Bh5h4][%mdl 32]} 43. Rd7 {[%emt 0:00:02]} h4 {[%emt 0:00:12]} 44. Rd1 {[%emt 0:00:02]} Nd3 {[%emt 0:00:01] White must now prevent ...Qe3.} 45. Rb1 {[%emt 0:00:01]} Qe3 {[%emt 0:00:04] Hoping for ...Ne1.} 46. Kh2 {[%emt 0:00:03]} Nf4 {[%emt 0:00:03]} 47. Rb7 {[%emt 0:00:02]} Ne2 {[%emt 0:00:03][%csl Ge2][%cal Re3g1]} 48. Ra1 {[%emt 0:00:02]} Qf4+ {[%emt 0:00:07]} 49. Kh1 {[%emt 0:00:01]} Ng3+ {[%emt 0:00:02]} (49... Qd2 $142 50. Rbb1 Qxc3 51. Ra2 Qe3 52. Rba1 c3 53. Kh2 Nd4 54. Rf1 c2 55. Raa1 Ne2 56. Rfe1 Qf4+ 57. Kh1 Qd2 58. Rf1 c1=Q 59. Raxc1 Nxc1 60. Kh2 Nd3 61. f4 Nxf4 62. Rxf4 exf4 63. Kh1 Qe1+ 64. Kh2 Qxe4 65. g4 hxg3+ 66. Kg1 f3 67. Kh1 f2#) 50. Kg1 {[%emt 0:00:01]} Qd2 {[%emt 0:00:04]} 51. Rc7 {[%emt 0:00:02]} Qxc3 {[%emt 0:00:03] Weighted Error Value: White=0.77/Black=0.29 (precise)} 0-1

[Event "Superbet Blitz Poland 2023"]
[Site "Warsaw"]
[Date "2023.05.24"]
[Round "6"]
[White "Shevchenko, Kirill"]
[Black "Vachier-Lagrave, Maxime"]
[Result "1/2-1/2"]
[ECO "B30"]
[WhiteElo "2684"]
[BlackElo "2742"]
[Annotator "TA"]
[PlyCount "44"]
[EventDate "2023.05.24"]
[EventType "tourn"]
[EventCountry "POL"]
[SourceTitle "playchess.com"]
[Source "ChessBase"]
[SourceQuality "1"]
[TimeControl "300+2"]

{[%evp 10,44,2,18,16,0,16,19,21,27,27,6,-1,1,48,30,87,81,82,85,114,62,72,51,79,75,102,65,78,37,58,0,53,0,62,0,70]} 1. e4 {[%emt 0:00:02]} c5 {[%emt 0:00:03]} 2. Nc3 {[%emt 0:00:01]} Nc6 {[%emt 0:00:02]} 3. Bb5 {[%emt 0:00:01]} Nd4 {[%emt 0:00:02]} 4. Nf3 {[%emt 0:00:01]} e6 {[%emt 0:00:05]} 5. O-O {[%emt 0:00:04]} a6 {[%emt 0:00:01]} 6. Bd3 {[%emt 0:00:01]} Nc6 {[%emt 0:00:02] B30: Sicilian: 2...Nc6 3 Bb5, lines without ...g6.} 7. Nd5 {[%emt 0:00:12]} d6 {[%emt 0:00:17] 7...g6 is the modern continuation.} 8. Ne3 {[%emt 0:00:03]} g5 {[%emt 0:00:19]} 9. c3 {[%emt 0:00:06]} h5 {[%emt 0:00:02]} 10. Bc2 {[%emt 0:00:02]} g4 {[%emt 0:00:06]} 11. Ne1 {[%emt 0:00:01]} Bg7 {[%emt 0:00:02]} (11... d5 $11 {is more appropriate.}) 12. f3 {[%emt 0:00:25] [#]} Nh6 $146 {[%emt 0:00:27]} (12... d5 $11 {remains equal.}) ({Predecessor:} 12... gxf3 13. Nxf3 e5 14. Qe1 h4 15. Bb3 Be6 16. d4 cxd4 17. cxd4 Nxd4 18. Nxd4 exd4 {½-½ Khachiyan,M (2525)-Fier,A (2582) Saint Louis Spring-B 2018 (7)}) 13. fxg4 $16 {[%emt 0:00:20]} hxg4 {[%emt 0:00:01]} 14. Nxg4 {[%emt 0:00:02]} Qh4 {[%emt 0:00:43]} 15. Nxh6 {[%emt 0:01:12]} ({Much weaker is} 15. h3 $6 Nxg4 16. Qxg4 Qxg4 17. hxg4 Ne5 $11) (15. Ne3 $16) 15... Qxh6 $14 {[%emt 0:00:01]} 16. h3 {[%emt 0:00:00][%cal Od2d4]} Qh4 {[%emt 0:00:01]} 17. Qf3 {[%emt 0:00:21]} Qe7 {[%emt 0:00:29]} 18. Qg4 {[%emt 0:00:10]} Rg8 {[%emt 0:00:06][%cal Og7d4] [#] Strongly threatening ...Bd4+!} 19. Qh5 {[%emt 0:00:07] Inhibits Bd4+.} Rh8 {[%emt 0:00:03]} 20. Qg4 {[%emt 0:00:05]} Rg8 {[%emt 0:00:01][%cal Og7d4] Threatens to win with ...Bd4+!} 21. Qh5 {[%emt 0:00:06] Wards off Bd4+} Rh8 {[%emt 0:00:09]} 22. Qg4 {[%emt 0:00:03]} Rg8 $1 {[%emt 0:00:15] Weighted Error Value: White=0.27 (precise) /Black=0.16 (very precise)} 1/2-1/2

[Event "Superbet Blitz Poland 2023"]
[Site "Warsaw"]
[Date "2023.05.24"]
[Round "6"]
[White "Wojtaszek, Radoslaw"]
[Black "Giri, Anish"]
[Result "0-1"]
[ECO "D16"]
[WhiteElo "2670"]
[BlackElo "2768"]
[Annotator "TA"]
[PlyCount "98"]
[EventDate "2023.05.24"]
[EventType "tourn"]
[EventCountry "POL"]
[SourceTitle "playchess.com"]
[Source "ChessBase"]
[SourceQuality "1"]
[TimeControl "300+2"]

{[%evp 16,98,20,10,20,0,6,0,0,0,0,0,6,0,-11,-17,-18,-19,-25,-46,-41,-46,-34,-41,-29,-27,-33,-25,-31,-79,-79,-76,-88,-66,-38,-41,-37,-35,-36,-39,-15,-31,0,0,0,-19,200,0,0,-75,-6,-22,-48,-102,-102,-126,-112,-110,-76,-88,-50,-68,-53,-56,-46,-250,-236,-274,-188,-322,-308,-291,-273,-506,-509,-778,-781,-1425,-1404,-1404,-1400,-1139,-1061,-936,-918]} 1. d4 {[%emt 0:00:01]} d5 {[%emt 0:00:00]} 2. c4 {[%emt 0:00:01]} c6 {[%emt 0:00:01]} 3. Nf3 {[%emt 0:00:01]} Nf6 {[%emt 0:00:01]} 4. Nc3 {[%emt 0:00:01]} dxc4 {[%emt 0:00:01]} 5. a4 {[%emt 0:00:01]} e6 {[%emt 0:00:01]} 6. e3 {[%emt 0:00:06]} c5 {[%emt 0:00:01]} 7. Bxc4 {[%emt 0:00:01]} cxd4 {[%emt 0:00:00]} 8. exd4 {[%emt 0:00:02]} Nc6 {[%emt 0:00:07]} 9. O-O {[%emt 0:00:02]} Be7 {[%emt 0:00:00] D16: Slav Defence: 5 a4: Lines with 5...Bg4 and 5...Na6.} 10. Bf4 {[%emt 0:00:05]} O-O {[%emt 0:00:03]} 11. Rc1 {[%emt 0:00:02]} Nb4 {[%emt 0:00:13] The position is equal.} 12. Ne5 {[%emt 0:00:08]} Bd7 {[%emt 0:00:18]} 13. Re1 {[%emt 0:00:18]} Bc6 {[%emt 0:00:15]} 14. Nxc6 {[%emt 0:00:34]} bxc6 {[%emt 0:00:03]} 15. Be5 {[%emt 0:00:02] [#]} a5 $146 {[%emt 0:00:27]} ({Predecessor:} 15... Bd6 16. Qf3 Rb8 17. Qg3 Nh5 18. Qf3 Nf6 19. b3 Nbd5 20. Ne4 Bxe5 21. dxe5 Nxe4 22. Rxe4 {½-½ Zhou,J (2612)-Yu,R (2516) CHN-chT China 2016 (15.4)}) 16. Qf3 {[%emt 0:00:07]} Nd7 {[%emt 0:00:04]} 17. Rcd1 {[%emt 0:01:04]} Nxe5 {[%emt 0:00:13]} 18. dxe5 {[%emt 0:00:01]} Qc7 {[%emt 0:00:01]} 19. Qg3 {[%emt 0:00:23]} Rad8 {[%emt 0:00:03]} 20. Ne4 {[%emt 0:00:01]} Nc2 {[%emt 0:00:41][%cal Bb4c2,Bc2d4,Bd4f5][%mdl 32]} 21. Rf1 {[%emt 0:00:26]} Nd4 {[%emt 0:00:01]} 22. Kh1 {[%emt 0:00:16]} (22. b3 $15 {is more appropriate.}) 22... Nf5 $17 {[%emt 0:00:13]} 23. Qf4 {[%emt 0:00:02]} Rxd1 {[%emt 0:00:02]} 24. Rxd1 Rd8 25. Rxd8+ {[%emt 0:00:20]} Qxd8 {[%emt 0:00:04]} 26. Qd2 {[%emt 0:00:01] Prevents Qd1+.} Qc7 {[%emt 0:00:10]} 27. f4 {[%emt 0:00:04]} h5 {[%emt 0:00:09]} 28. b3 {[%emt 0:00:10]} Bb4 {[%emt 0:00:34]} 29. Qd3 {[%emt 0:00:05]} Qa7 {[%emt 0:00:11]} 30. g3 {[%emt 0:00:08]} (30. h3 $5 {[%cal Rg2g4]}) 30... Qb6 $2 {[%emt 0:00:20] [#]} (30... Be7 $11) 31. Kg2 $2 {[%emt 0:00:02]} (31. Bxe6 $1 $18 Qd4 32. Bxf7+ (32. Bxf5 Qxd3 33. Nf6+ {[%mdl 64] Discovered Attack} gxf6 $16) 32... Kxf7 33. Nd6+ Bxd6 34. Qxf5+ Ke7 35. Qg5+ (35. exd6+ Kxd6 36. Qf8+ Kc7 $16) 35... Ke6 36. exd6 (36. Qg6+ Kd7 $16) 36... Qd5+ 37. Kg1 Kxd6 38. Qd8+ (38. Qxg7 Qxb3 39. Qd4+ Kc7 $16) 38... Ke6 39. Qg8+ Kd6 40. Qf8+ (40. Qxg7 Qxb3 41. Qg6+ Kd7 $16) 40... Ke6 41. Qg8+ (41. Qxg7 Qf3 $18) 41... Kd6 42. Qf8+ (42. Qxg7 Qxb3 43. Qd4+ Kc7 $16) 42... Ke6 43. Qxg7) 31... Be7 $11 {[%emt 0:00:11]} 32. h3 {[%emt 0:00:07]} (32. Qd7 $11 {remains equal.} g6 33. Nf6+ Kg7 34. Ne8+ Kh7 35. Nf6+ Kg7 36. Ne8+ Kh7 37. Nf6+ Kg7) 32... Ne3+ {[%emt 0:00:15]} (32... h4 $17) 33. Kf3 {[%emt 0:00:07]} Nd5 {[%emt 0:00:02]} 34. Qd2 {[%emt 0:01:01]} (34. Nd6 $15) 34... Qg1 $17 {[%emt 0:00:11]} 35. Qf2 {[%emt 0:00:01]} Qh1+ {[%emt 0:00:10]} 36. Qg2 {[%emt 0:00:02]} Qb1 {[%emt 0:00:03]} 37. Qf1 {[%emt 0:00:06]} Qb2 {[%emt 0:00:08] Black is more active.} 38. Qf2 {[%emt 0:00:01]} Qa1 {[%emt 0:00:05]} 39. h4 {[%emt 0:00:01]} g6 {[%emt 0:00:36]} 40. Ng5 $2 {[%emt 0:00:01]} (40. Kg2 $15) 40... Bxg5 {[%emt 0:00:07]} 41. hxg5 $19 {[%emt 0:00:02][%mdl 4096] Endgame KQB-KQN} Kg7 {[%emt 0:00:03]} 42. Kg2 {[%emt 0:00:09]} (42. Qf1 $142 Qc3+ 43. Qd3) 42... Qc1 {[%emt 0:00:02] [#] ...Ne3+ is the strong threat.} 43. Qe2 {[%emt 0:00:08]} Ne3+ {[%emt 0:00:01]} 44. Kf3 $2 {[%emt 0:00:01]} (44. Kh2) 44... Nf5 {[%emt 0:00:02] Black is clearly winning.} 45. Qd3 {[%emt 0:00:05] Repels Nd4+} (45. Qh2 $142 Nd4+ 46. Kg2) 45... Qg1 {[%emt 0:00:03]} 46. Qd8 {[%emt 0:00:01]} Qe3+ {[%emt 0:00:08]} ({Weaker is} 46... Nxg3 47. Bxe6 Qf1+ 48. Kxg3 $11) 47. Kg2 {[%emt 0:00:01]} Qxg3+ {[%emt 0:00:01]} ({Stronger than} 47... Nxg3 48. Qf6+ Kg8 49. Bxe6 Qe4+ 50. Kxg3 $11) 48. Kf1 {[%emt 0:00:01]} Qxf4+ {[%emt 0:00:01]} 49. Ke2 {[%emt 0:00:02]} Qxe5+ {[%emt 0:00:01] Weighted Error Value: White=0.57/Black=0.22 (precise)} 0-1

[Event "Superbet Blitz Poland 2023"]
[Site "Warsaw"]
[Date "2023.05.24"]
[Round "7"]
[White "Giri, Anish"]
[Black "Carlsen, Magnus"]
[Result "0-1"]
[ECO "B30"]
[WhiteElo "2768"]
[BlackElo "2853"]
[Annotator "TA"]
[PlyCount "96"]
[EventDate "2023.05.24"]
[EventType "tourn"]
[EventCountry "POL"]
[SourceTitle "playchess.com"]
[Source "ChessBase"]
[SourceQuality "1"]
[TimeControl "300+2"]

{[%evp 9,96,16,23,16,22,19,26,10,31,35,44,8,20,9,44,37,33,11,9,0,0,0,32,34,27,36,43,45,49,44,47,41,51,40,70,63,70,27,23,-15,-16,-17,12,2,24,27,131,145,145,131,179,179,192,190,178,166,182,129,213,181,175,177,680,152,29987,305,395,227,266,214,208,137,154,153,160,129,159,147,159,139,131,0,0,0,0,-44,-44,-1678,-1755]} 1. e4 {[%emt 0:00:00]} c5 {[%emt 0:00:02]} 2. Nf3 {[%emt 0:00:01]} Nc6 {[%emt 0:00:02]} 3. Bb5 {[%emt 0:00:01]} e5 {[%emt 0:00:01]} (3... e6 4. O-O Nge7 5. Re1 a6 6. Bf1 Ng6 7. c3 Be7 8. d4 cxd4 9. cxd4 d5 10. e5 O-O 11. Nc3 Bd7 12. g3 f6 13. exf6 Rxf6 14. Bg5 Rf8 15. Bxe7 Ngxe7 16. Bg2 Nf5 17. Qd2 h6 18. Rad1 {0-1 Giri,A (2764)-Carlsen,M (2859) Meltwater Tour Final rapid 2022 (4.3)}) 4. O-O {[%emt 0:00:04]} Bd6 {[%emt 0:00:02]} 5. d3 {[%emt 0:00:03]} Nf6 {[%emt 0:00:05]} 6. a4 {[%emt 0:00:20] B30: Sicilian: 2...Nc6 3 Bb5, lines without ...g6.} O-O {[%emt 0:00:24]} 7. Nc3 {[%emt 0:00:01]} h6 {[%emt 0:00:08] [#]} 8. h3 $146 {[%emt 0:00:18] White has an edge.} ({Predecessor:} 8. Be3 Nd4 9. Bc4 Bc7 10. Nd5 Nxd5 11. Bxd5 d6 12. c3 Nxf3+ 13. Qxf3 Be6 14. Bxe6 fxe6 {1-0 Antipov,M (2592)-Ibarra Jerez,J (2570) Chess.com Rapid Wk15 Swiss 2022 (3)}) 8... Re8 {[%emt 0:00:19]} 9. Bc4 {[%emt 0:00:07]} Bf8 {[%emt 0:00:01]} 10. Nd5 {[%emt 0:00:02]} d6 {[%emt 0:00:06]} 11. c3 {[%emt 0:00:02][%cal Bc2c3,Bc3b4][%mdl 32]} Be6 {[%emt 0:00:45]} 12. Re1 {[%emt 0:00:41]} a6 {[%emt 0:00:01]} 13. Bd2 {[%emt 0:00:05]} Rb8 {[%emt 0:00:06]} 14. b4 {[%emt 0:00:17]} cxb4 {[%emt 0:00:03]} 15. cxb4 {[%emt 0:00:01]} Bxd5 {[%emt 0:00:26]} (15... b5 $5 {[%cal Rb5c4]} 16. axb5 axb5 $14) 16. exd5 {[%emt 0:00:03]} Ne7 {[%emt 0:00:01]} 17. a5 {[%emt 0:00:18]} Qd7 {[%emt 0:00:14]} 18. Qb3 {[%emt 0:00:05]} Rec8 {[%emt 0:00:01]} 19. b5 {[%emt 0:00:08]} axb5 {[%emt 0:00:02]} 20. Bxb5 {[%emt 0:00:00]} Qd8 {[%emt 0:00:01]} 21. Rab1 {[%emt 0:00:31]} Nf5 {[%emt 0:00:50]} (21... Nfxd5 22. Bc4 (22. d4 Nc7 $14) 22... Rc5 23. d4 exd4 24. Nxd4 $16) 22. g4 {[%emt 0:00:21]} Ne7 {[%emt 0:00:02]} 23. Bc4 {[%emt 0:00:10]} (23. d4 $5 {[%cal Rd4e5]}) 23... Ng6 {[%emt 0:00:22]} 24. Qb6 {[%emt 0:00:13]} Rc7 {[%emt 0:00:02]} 25. a6 {[%emt 0:00:49]} Nd7 {[%emt 0:00:04]} 26. Qe3 {[%emt 0:00:01]} bxa6 {[%emt 0:00:49]} (26... Nf4 $5 {[%cal Rf4h3]}) 27. Ba5 {[%emt 0:00:04]} Nc5 {[%emt 0:00:06]} 28. d4 $16 {[%emt 0:00:21]} exd4 {[%emt 0:00:33]} 29. Nxd4 {[%emt 0:00:02] [#] Nc6 is the strong threat.} Rxb1 {[%emt 0:00:09]} (29... Ra8 $16 {was worth a try.} 30. Nc6 (30. Bxc7 Qxc7 31. Bd3 Ne5 $16) 30... Qc8 31. Bxc7 Qxc7) 30. Rxb1 $18 {[%emt 0:00:01]} Qe7 {[%emt 0:00:12]} 31. Bxc7 {[%emt 0:00:06]} Qxc7 {[%emt 0:00:01] Black is weak on the light squares} 32. Bf1 {[%emt 0:00:08]} a5 {[%emt 0:00:01]} 33. Qe8 {[%emt 0:00:20]} (33. Bg2 $18) 33... a4 {[%emt 0:00:02]} (33... Nd7 $16 {was necessary.} 34. Nc6 Nf6) 34. Rb8 {[%emt 0:00:04][%cal Bb1b8,Bb8c8,Bc8a8][%mdl 32]} Nd7 {[%emt 0:00:04]} 35. Rc8 {[%emt 0:00:03]} Qb6 {[%emt 0:00:00]} (35... Qb7 36. Nf5 Nf6) 36. Nf5 $2 {[%emt 0:00:04]} (36. Ne6 $18 {and the rest is easy.} Nf6 37. Qxf8+ (37. Qxa4 fxe6 38. dxe6 Ne7 $11) 37... Nxf8 38. Rxf8+ Kh7 39. Bd3+ (39. Rxf7 $2 Qb1 $19) 39... g6 40. Rxf7+ Kh8 41. Rxf6) 36... Nf6 {[%emt 0:00:01] [#]} (36... Nge5 $16) 37. Qxa4 $2 {[%emt 0:00:09]} (37. Ne7+ {mates} Kh7 38. Qxf7 (38. Qxa4 Bxe7 39. Bd3 Qb7 $11) 38... Qb1 39. Nxg6 {[%mdl 64] Remove Defender} (39. Rxf8 Ne5 $11) 39... Qxg6 40. Qxf8 Qe4 41. Rc7 Ne8 42. Re7) 37... Qb1 {[%emt 0:00:02]} 38. Qd4 {[%emt 0:00:05]} (38. Nxd6 $142 Qe1 39. Nf5 Nxd5 40. Qd4) 38... Kh7 {[%emt 0:00:01]} 39. Ra8 {[%emt 0:00:07]} Ne5 {[%emt 0:00:01] ...Nf3+ would be deadly.} 40. Ra3 {[%emt 0:00:02] Prevents Nf3+} (40. Rxf8 $2 {perishes.} Nf3+ 41. Kg2 Nxd4 42. Nxd4 Qe4+ 43. Nf3 Nxg4 $19) 40... g6 {[%emt 0:00:02]} 41. Ng3 {[%emt 0:00:01]} Bg7 {[%emt 0:00:01][%cal Of6g4]} 42. Qa1 {[%emt 0:00:02]} Qb7 {[%emt 0:00:02][%cal Of6g4]} 43. Qa2 {[%emt 0:00:01]} Qb6 {[%emt 0:00:01]} 44. Re3 {[%emt 0:00:02]} Qd4 {[%emt 0:00:01]} 45. Qe2 {[%emt 0:00:02]} (45. Ne2 $16 Qc5 46. Nc3) 45... Nxd5 $11 {[%emt 0:00:02][%cal Bf6d5,Bd5c3,Bc3a2][%mdl 32]} 46. Re4 {[%emt 0:00:01]} Qc5 {[%emt 0:00:01]} 47. Bg2 {[%emt 0:00:01]} Nc3 {[%emt 0:00:01][%csl LRe2,LRe4][%mdl 1024] Black has compensation. A dynamic duo of knights.} 48. Qa2 {[%emt 0:00:04][%mdl 8192]} Nxa2 {[%emt 0:00:00] An entertaining game by Carlsen.   Weighted Error Value: White=0.60/Black=0.44} 0-1